bitfinex-derivatives/quotes_ETHF0:USTF0_20210109
["timestamp","ask_amount","ask_price","bid_price","bid_amount"]
[1610195435179,54.25013735,1224.4,1223.7,4.00959]
[1610195435382,60.43803642,1224.5,1223.8,50.0]
[1610195435981,54.19573642,1224.5,1223.9,50.0]
[1610195436381,54.19321041,1224.6,1223.9,50.0]
[1610195436979,4.00959,1224.0,1223.9,50.0]
[1610195437879,4.00959,1224.0,1223.8,50.0]
[1610195438080,4.00959,1224.0,1223.7,13.53929]
[1610195438480,4.00959,1224.0,1223.9,50.0]
[1610195438882,4.00959,1224.0,1223.8,50.0]
[1610195439081,4.00959,1224.0,1223.7,13.53929]
[1610195439281,4.00959,1224.0,1223.9,50.0]
[1610195439481,4.00959,1224.0,1223.8,50.0]
[1610195439882,4.00959,1224.0,1223.8,51.24863413]
[1610195440082,1.6533,1224.2,1224.0,191.98082]
[1610195440984,4.00959,1224.1,1224.0,191.98082]
[1610195441785,4.00959,1224.1,1224.0,241.98082]
[1610195442486,4.00959,1224.1,1224.0,243.22947926]
[1610195446189,4.00959,1224.1,1224.0,241.98082]
[1610195446589,4.00959,1224.1,1224.0,243.22944747]
[1610195447991,34.00959,1224.1,1224.0,243.22944747]
[1610195449494,34.00959,1224.1,1224.0,241.98082]
[1610195449692,88.21140291,1224.1,1224.0,241.98082]
[1610195450893,97.84920291,1224.1,1224.0,241.98082]
[1610195451496,67.84920291,1224.1,1224.0,241.98082]
[1610195451893,97.84920291,1224.1,1224.0,241.98082]
[1610195452094,43.64739,1224.1,1224.0,241.98082]
[1610195452295,48.64999218,1224.1,1224.0,241.98082]
[1610195452500,97.85140922,1224.1,1224.0,191.98082]
[1610195452995,97.85140922,1224.1,1224.0,241.98082]
[1610195453895,97.85140922,1224.1,1224.0,191.98082]
[1610195455395,88.21360922,1224.1,1224.0,191.98082]
[1610195455597,37.85116942,1224.1,1224.0,191.98082]
[1610195456297,52.85037478,1224.1,1224.0,191.98082]
[1610195456497,60.84724482,1224.1,1224.0,191.98082]
[1610195456699,78.84724482,1224.1,1224.0,191.98082]
[1610195456897,63.84803946,1224.1,1224.0,191.98082]
[1610195457098,78.84753666,1224.1,1224.0,191.98082]
[1610195458297,63.84803946,1224.1,1224.0,191.98082]
[1610195458497,78.84823339,1224.1,1224.0,191.98082]
[1610195458998,78.84823339,1224.1,1224.0,241.98082]
[1610195459199,78.84823339,1224.1,1224.0,191.98082]
[1610195464803,63.84803946,1224.1,1224.0,191.98082]
[1610195465506,106.21171284,1224.1,1224.0,191.98082]
[1610195466807,106.21171284,1224.1,1224.0,241.98082]
[1610195467608,65.01290215,1224.1,1224.0,241.98082]
[1610195467807,52.00959,1224.1,1224.0,241.98082]
[1610195468008,22.00959,1224.1,1224.0,241.98082]
[1610195471813,52.00959,1224.1,1224.0,241.98082]
[1610195473713,119.13949,1224.1,1224.0,241.98082]
[1610195474516,89.13949,1224.1,1224.0,241.98082]
[1610195475214,119.13949,1224.1,1224.0,241.98082]
[1610195476116,89.13949,1224.1,1224.0,241.98082]
[1610195477119,119.13949,1224.1,1224.0,241.98082]
[1610195478217,89.13949,1224.1,1224.0,241.98082]
[1610195478619,22.00959,1224.1,1224.0,241.98082]
[1610195479020,52.00959,1224.1,1224.0,241.98082]
[1610195480020,22.00959,1224.1,1224.0,241.98082]
[1610195481820,52.00959,1224.1,1224.0,241.98082]
[1610195484522,52.00959,1224.1,1224.0,191.98082]
[1610195485124,123.00587748,1224.1,1224.0,191.98082]
[1610195485923,63.92367748,1224.1,1224.0,191.98082]
[1610195486724,106.20831666,1224.1,1224.0,191.98082]
[1610195487326,106.20831666,1224.1,1224.0,241.98082]
[1610195487526,174.70321666,1224.1,1224.0,241.98082]
[1610195487727,106.20831666,1224.1,1224.0,241.98082]
[1610195488630,106.20831666,1224.1,1224.0,191.98082]
[1610195489029,106.20831666,1224.1,1224.0,241.98082]
[1610195489530,78.409357,1224.1,1224.0,241.98082]
[1610195489732,52.00959,1224.1,1224.0,241.98082]
[1610195492735,106.20583053,1224.1,1224.0,241.98082]
[1610195493236,52.00959,1224.1,1224.0,241.98082]
[1610195495341,106.20605116,1224.1,1224.0,191.98082]
[1610195496342,63.92424106,1224.1,1224.0,191.98082]
[1610195498546,63.92424106,1224.1,1224.0,241.98082]
[1610195498947,63.92424106,1224.1,1224.0,191.98082]
[1610195500748,63.92424106,1224.1,1224.0,182.93362]
[1610195500947,63.92424106,1224.1,1224.0,173.46372]
[1610195501349,80.92368951,1224.1,1224.0,173.46372]
[1610195501748,83.54630225,1224.1,1224.0,173.46372]
[1610195501950,66.5468538,1224.1,1224.0,173.46372]
[1610195502251,66.5468538,1224.1,1224.0,145.40322]
[1610195502450,85.54486233,1224.1,1224.0,145.40322]
[1610195503049,66.5468538,1224.1,1224.0,137.04412]
[1610195503648,66.5468538,1224.1,1224.0,128.79092]
[1610195503852,66.5468538,1224.1,1224.0,116.32212]
[1610195504050,83.52399875,1224.1,1224.0,111.12213342]
[1610195504249,83.52399875,1224.1,1224.0,100.88013342]
[1610195504452,58.55122814,1224.1,1224.0,100.88013342]
[1610195504651,66.55159055,1224.1,1224.0,100.88013342]
[1610195508062,130.68779055,1224.1,1224.0,100.88013342]
[1610195508654,137.73580838,1224.1,1224.0,100.88013342]
[1610195509153,130.68779055,1224.1,1224.0,100.88013342]
[1610195511356,66.55159055,1224.1,1224.0,100.88013342]
[1610195513665,86.48940493,1224.1,1224.0,100.88013342]
[1610195516863,66.55159055,1224.1,1224.0,100.88013342]
[1610195518068,86.48039272,1224.1,1224.0,100.88013342]
[1610195519070,66.55159055,1224.1,1224.0,100.88013342]
[1610195520473,86.49496904,1224.1,1224.0,100.88013342]
[1610195523676,146.96806904,1224.1,1224.0,100.88013342]
[1610195524478,86.49496904,1224.1,1224.0,100.88013342]
[1610195524879,136.55596904,1224.1,1224.0,100.88013342]
[1610195525078,116.61259055,1224.1,1224.0,100.88013342]
[1610195525778,136.56403652,1224.1,1224.0,100.88013342]
[1610195526079,116.61259055,1224.1,1224.0,100.88013342]
[1610195529284,116.61259055,1224.1,1224.0,95.87926357]
[1610195532387,66.55159055,1224.1,1224.0,95.87926357]
[1610195534288,85.5573574,1224.1,1224.0,95.87926357]
[1610195535389,66.55159055,1224.1,1224.0,95.87926357]
[1610195536093,83.55302424,1224.1,1224.0,95.87926357]
[1610195536892,92.27502424,1224.1,1224.0,95.87926357]
[1610195538596,75.27359055,1224.1,1224.0,95.87926357]
[1610195539596,92.27456706,1224.1,1224.0,95.87926357]
[1610195540402,66.55159055,1224.1,1224.0,95.87926357]
[1610195542201,63.92897781,1224.1,1224.0,95.87926357]
[1610195543001,78.92935024,1224.1,1224.0,95.87926357]
[1610195543401,63.92897781,1224.1,1224.0,95.87926357]
[1610195543701,78.92935677,1224.1,1224.0,95.87926357]
[1610195545004,63.92897781,1224.1,1224.0,95.87926357]
[1610195549911,80.93095727,1224.1,1224.0,95.87926357]
[1610195550210,63.92897781,1224.1,1224.0,95.87926357]
[1610195550611,80.93055321,1224.1,1224.0,95.87926357]
[1610195550811,63.92897781,1224.1,1224.0,95.87926357]
[1610195553320,66.57980809,1224.1,1224.0,95.87926357]
[1610195554519,81.58074191,1224.1,1224.0,95.87926357]
[1610195556221,78.92991163,1224.1,1224.0,95.87926357]
[1610195557726,81.58013262,1224.1,1224.0,95.87926357]
[1610195558527,66.5791988,1224.1,1224.0,95.87926357]
[1610195559227,63.92897781,1224.1,1224.0,95.87926357]
[1610195559430,63.92897781,1224.1,1224.0,145.87926357]
[1610195559830,63.92897781,1224.1,1224.0,95.87926357]
[1610195563233,78.92787637,1224.1,1224.0,95.87926357]
[1610195565637,63.92897781,1224.1,1224.0,95.87926357]
[1610195565839,33.92897781,1224.1,1224.0,95.87926357]
[1610195566237,33.92897781,1224.1,1224.0,145.87926357]
[1610195566636,25.9286154,1224.1,1224.0,145.87926357]
[1610195567038,75.41187563,1224.1,1224.0,145.87926357]
[1610195568239,105.41187563,1224.1,1224.0,145.87926357]
[1610195568440,105.41187563,1224.1,1224.0,95.87926357]
[1610195568640,105.41187563,1224.1,1224.0,145.87926357]
[1610195569242,75.41187563,1224.1,1224.0,145.87926357]
[1610195569842,52.00959,1224.1,1224.0,145.87926357]
[1610195570042,105.40967123,1224.1,1224.0,145.87926357]
[1610195570743,75.40967123,1224.1,1224.0,145.87926357]
[1610195573848,22.00959,1224.1,1224.0,145.87926357]
[1610195576553,22.00959,1224.1,1224.0,147.12782271]
[1610195578155,22.00959,1224.1,1224.0,211.57132271]
[1610195579555,22.00959,1224.1,1224.0,215.58091271]
[1610195579955,22.00959,1224.1,1224.0,211.57132271]
[1610195588264,22.00959,1224.1,1224.0,147.12782271]
[1610195589766,18.0,1224.1,1224.0,147.12782271]
[1610195591569,18.0,1224.1,1224.0,206.58262271]
[1610195593671,18.0,1224.1,1224.0,210.59221271]
[1610195594271,18.0,1224.1,1224.0,206.58262271]
[1610195594671,53.25886927,1224.9,1224.2,73.86967357]
[1610195595376,53.25886927,1224.9,1224.3,50.0]
[1610195595577,4.00959,1224.4,1224.3,50.0]
[1610195595978,4.00959,1224.4,1224.3,51.24826554]
[1610195596979,4.00959,1224.4,1224.3,1.24826554]
[1610195597379,4.00959,1224.4,1224.3,51.24826554]
[1610195601583,4.00959,1224.4,1224.3,55.25785554]
[1610195604087,4.00959,1224.4,1224.3,104.37165554]
[1610195604786,4.00959,1224.4,1224.3,100.36206554]
[1610195609594,4.00959,1224.4,1224.3,51.24826554]
[1610195612995,4.00959,1224.4,1224.3,50.0]
[1610195613395,34.00959,1224.4,1224.3,50.0]
[1610195613595,36.37449,1224.4,1224.3,50.0]
[1610195613795,89.48753629,1224.4,1224.3,50.0]
[1610195613997,39.04800732,1224.4,1224.3,50.0]
[1610195614196,39.04800732,1224.4,1224.2,73.86967357]
[1610195614596,15.62066234,1224.3,1224.2,73.86967357]
[1610195614796,45.62066234,1224.3,1224.2,73.86967357]
[1610195614996,32.6733369,1224.3,1224.2,73.86967357]
[1610195615297,55.59569086,1224.3,1224.2,73.86967357]
[1610195615599,40.66805802,1224.3,1224.2,73.86967357]
[1610195617405,57.56962936,1224.3,1224.2,73.86967357]
[1610195618804,32.6733369,1224.3,1224.2,73.86967357]
[1610195620504,59.54105177,1224.3,1224.2,73.86967357]
[1610195621405,59.54105177,1224.3,1224.2,63.27977357]
[1610195622106,40.67013485,1224.3,1224.2,63.27977357]
[1610195622508,59.54172867,1224.3,1224.2,63.27977357]
[1610195623507,40.67013485,1224.3,1224.2,63.27977357]
[1610195623907,59.53417946,1224.3,1224.2,63.27977357]
[1610195627912,51.53738151,1224.3,1224.2,63.27977357]
[1610195628314,54.11153596,1224.3,1224.2,63.27977357]
[1610195629116,35.24749135,1224.3,1224.2,63.27977357]
[1610195630519,35.24749135,1224.3,1224.2,58.28095559]
[1610195631420,35.24749135,1224.3,1224.2,49.71825559]
[1610195632821,35.24749135,1224.3,1224.2,48.49095559]
[1610195633421,35.24749135,1224.3,1224.2,46.83905559]
[1610195633622,35.24749135,1224.3,1224.2,37.21355559]
[1610195634022,55.08203911,1224.3,1224.2,35.99515559]
[1610195634222,55.08203911,1224.3,1224.2,26.32175559]
[1610195634422,35.24749135,1224.3,1224.2,24.71165559]
[1610195634824,35.24749135,1224.3,1224.2,23.46495559]
[1610195635225,35.24749135,1224.3,1224.2,13.77235559]
[1610195639436,35.24749135,1224.3,1224.2,13.00235559]
[1610195640838,35.24749135,1224.3,1224.2,12.15235559]
[1610195641038,35.24749135,1224.3,1224.2,10.39515559]
[1610195641939,35.24749135,1224.3,1224.2,10.11955559]
[1610195642139,35.24749135,1224.3,1224.2,8.09525559]
[1610195642342,35.24749135,1224.3,1224.2,6.04055559]
[1610195642540,35.24749135,1224.3,1224.2,0.39755559]
[1610195642740,52.6382,1223.5,1222.2,2.1214]
[1610195642940,30.0,1223.4,1222.0,65.3157]
[1610195643142,30.0,1223.4,1221.9,50.0]
[1610195643143,39.82512779,1222.6,1221.9,50.0]
[1610195643341,39.82512779,1222.6,1220.8,0.25011714]
[1610195643342,30.0,1222.5,1221.8,50.0]
[1610195643542,39.78927495,1222.4,1221.8,50.0]
[1610195643742,4.00959,1221.9,1221.8,50.0]
[1610195644142,4.00959,1221.9,1221.3,63.641]
[1610195645142,4.00959,1221.9,1221.4,1.25057189]
[1610195645342,4.00959,1221.9,1221.4,2.96907189]
[1610195645742,4.00959,1221.5,1221.4,2.96907189]
[1610195646546,4.00959,1221.5,1221.4,1.7185]
[1610195650347,4.00959,1221.5,1221.0,59.6788]
[1610195650547,4.00959,1221.5,1220.8,50.0]
[1610195650748,4.00959,1221.5,1220.5,108.7827]
[1610195651752,4.00959,1220.6,1220.5,58.7827]
[1610195652250,4.00959,1220.6,1220.5,50.0]
[1610195652651,4.00959,1220.6,1220.4,50.0]
[1610195653051,4.00959,1220.6,1220.1,50.0]
[1610195653657,4.00959,1220.6,1220.5,1.25111518]
[1610195653953,4.00959,1220.6,1220.5,51.25111518]
[1610195654153,4.00959,1220.6,1220.5,53.46321518]
[1610195654752,4.00959,1220.6,1220.5,3.46321518]
[1610195655354,4.00959,1220.6,1220.5,53.46321518]
[1610195657359,4.00959,1220.6,1220.5,52.2121]
[1610195657961,4.00959,1220.6,1220.5,53.46346369]
[1610195659260,4.00959,1220.6,1220.5,3.46346369]
[1610195661260,34.00959,1220.6,1220.5,3.46346369]
[1610195661662,4.00959,1220.6,1220.5,1.25136369]
[1610195662362,43.57561668,1220.6,1220.5,1.25136369]
[1610195662966,4.87169139,1220.6,1220.5,1.25136369]
[1610195663363,17.62817063,1220.6,1220.5,1.25136369]
[1610195663564,27.62283168,1220.6,1220.2,1.25237137]
[1610195663863,4.00959,1220.3,1220.2,1.25237137]
[1610195665066,4.00959,1220.3,1219.8,2.0859]
[1610195665466,4.00959,1220.3,1219.8,52.0859]
[1610195665866,4.00959,1219.9,1219.8,2.0859]
[1610195666966,4.00959,1219.9,1219.8,52.0859]
[1610195667368,4.00959,1219.9,1219.8,2.0859]
[1610195667570,4.00959,1219.9,1219.1,55.0947]
[1610195667970,4.00959,1219.2,1219.1,55.0947]
[1610195668768,4.00959,1219.2,1219.1,105.0947]
[1610195669169,4.00959,1219.2,1219.1,106.34710812]
[1610195671975,4.00959,1219.2,1219.1,56.34710812]
[1610195672380,4.00959,1219.2,1219.1,106.34710812]
[1610195673782,4.00959,1219.2,1219.1,108.48340812]
[1610195678882,24.00959,1219.2,1219.1,108.48340812]
[1610195682183,24.00959,1219.2,1219.1,53.38870812]
[1610195682384,24.00959,1219.2,1219.1,3.38870812]
[1610195685794,24.00959,1219.2,1219.1,1.25240812]
[1610195687898,24.00959,1219.2,1218.9,1.25324654]
[1610195690001,4.00959,1219.0,1218.9,1.25324654]
[1610195693202,4.00959,1219.0,1218.9,50.0]
[1610195693402,4.00959,1219.0,1218.8,1.7026]
[1610195693802,4.00959,1219.0,1218.5,50.0]
[1610195694003,4.00959,1218.6,1218.5,50.0]
[1610195695807,4.00959,1218.6,1218.5,51.25344602]
[1610195700909,4.00959,1218.6,1218.5,53.66724602]
[1610195703416,5.66599,1218.6,1218.5,53.66724602]
[1610195703617,4.00959,1218.6,1218.5,53.66724602]
[1610195704216,4.00959,1218.6,1218.5,51.25344602]
[1610195704619,5.67179,1218.6,1218.5,51.25344602]
[1610195704818,4.00959,1218.6,1218.5,1.25344602]
[1610195705822,4.00959,1218.6,1218.3,1.25409759]
[1610195706222,4.00959,1218.4,1218.3,1.25409759]
[1610195707825,56.65409,1218.4,1218.3,1.25409759]
[1610195708626,56.65409,1218.4,1218.2,1.25423479]
[1610195709026,58.27569,1218.4,1218.2,1.25423479]
[1610195709428,56.65409,1218.4,1218.2,1.25423479]
[1610195709829,56.65409,1218.4,1218.1,2.4556]
[1610195710031,56.65409,1218.4,1217.7,50.0]
[1610195710232,4.00959,1217.8,1217.7,50.0]
[1610195710533,4.00959,1217.8,1217.6,4.00959]
[1610195711133,4.00959,1217.8,1217.6,54.00959]
[1610195711334,4.00959,1217.8,1217.7,1.25426164]
[1610195711533,5.63709,1217.8,1217.7,3.58276164]
[1610195711936,5.63709,1217.8,1217.7,53.58276164]
[1610195712135,4.00959,1217.8,1217.7,53.58276164]
[1610195712337,4.00959,1217.8,1217.7,3.58276164]
[1610195713139,5.66139,1217.8,1217.7,53.58276164]
[1610195713538,5.66139,1217.8,1217.7,3.58276164]
[1610195715237,4.00959,1217.8,1217.7,3.58276164]
[1610195716243,5.66249,1217.8,1217.7,3.58276164]
[1610195716442,4.00959,1217.8,1217.7,3.58276164]
[1610195716841,59.91499,1217.8,1217.7,3.58276164]
[1610195717444,61.53509,1217.8,1217.7,3.58276164]
[1610195718244,59.91499,1217.8,1217.7,2.3285]
[1610195718443,59.91499,1217.8,1217.5,2.0638]
[1610195718844,89.91499,1217.8,1217.5,2.0638]
[1610195719447,89.91499,1217.8,1217.3,50.0]
[1610195720347,4.00959,1217.4,1217.1,50.0]
[1610195721048,4.00959,1217.4,1217.2,1.25514115]
[1610195721248,4.00959,1217.4,1217.2,3.04564115]
[1610195722651,4.00959,1217.4,1217.3,1.25494551]
[1610195723151,4.00959,1217.4,1217.3,51.25494551]
[1610195725454,4.00959,1217.4,1217.3,1.25494551]
[1610195725856,4.00959,1217.4,1217.3,51.25494551]
[1610195732966,4.00959,1217.4,1217.3,100.05124551]
[1610195734465,40.97924017,1218.7,1217.3,104.06083551]
[1610195735067,40.98718338,1218.8,1217.3,104.06083551]
[1610195735671,40.98718338,1218.8,1217.4,1.25443321]
[1610195736470,4.00959,1217.5,1217.4,1.25443321]
[1610195737875,4.00959,1217.5,1217.4,51.25443321]
[1610195739878,5.66439,1217.5,1217.4,51.25443321]
[1610195741882,4.00959,1217.5,1217.4,51.25443321]
[1610195742981,5.64449,1217.5,1217.4,51.25443321]
[1610195743183,4.00959,1217.5,1217.4,51.25443321]
[1610195764316,41.00423643,1218.6,1217.5,64.2139]
[1610195764717,41.01251551,1218.7,1217.8,4.00959]
[1610195764914,41.01251551,1218.7,1217.8,15.50839]
[1610195765116,47.08328876,1218.8,1217.8,15.50839]
[1610195765316,47.08328876,1218.8,1217.8,11.4988]
[1610195765918,47.08328876,1218.8,1217.9,50.0]
[1610195766118,41.01753022,1218.7,1217.9,50.0]
[1610195766518,77.09713784,1218.8,1217.9,51.25439309]
[1610195766720,4.00959,1218.0,1217.9,51.25439309]
[1610195767218,4.00959,1218.0,1217.9,1.25439309]
[1610195767619,4.00959,1218.0,1217.9,51.25439309]
[1610195768121,34.00959,1218.0,1217.9,51.25439309]
[1610195769121,34.00959,1218.0,1217.9,1.25439309]
[1610195769323,53.74177628,1218.0,1217.7,50.0]
[1610195769527,52.8485,1217.9,1217.7,50.0]
[1610195769731,30.0,1217.8,1217.2,1.7905]
[1610195769929,46.0739329,1217.8,1217.2,1.7905]
[1610195770331,40.88950607,1217.6,1217.0,50.0]
[1610195770530,30.0,1217.5,1217.0,50.0]
[1610195770732,4.00959,1217.1,1217.0,50.0]
[1610195771530,4.00959,1217.1,1216.5,53.5859]
[1610195771931,4.00959,1217.1,1217.0,50.0]
[1610195772134,4.00959,1217.1,1217.0,51.5745]
[1610195772333,34.00959,1217.1,1217.0,1.5745]
[1610195772933,4.00959,1217.1,1217.0,51.5745]
[1610195777043,4.00959,1217.1,1217.0,1.5745]
[1610195778545,13.33529,1217.1,1217.0,1.5745]
[1610195778948,4.00959,1217.1,1217.0,1.5745]
[1610195779346,4.00959,1217.1,1216.9,50.0]
[1610195779548,65.4493,1217.0,1216.9,50.0]
[1610195779746,95.4493,1217.0,1216.9,50.0]
[1610195780348,95.4493,1217.0,1216.5,50.0]
[1610195780750,4.00959,1216.6,1216.5,50.0]
[1610195780949,4.00959,1216.6,1216.4,50.0]
[1610195781350,4.00959,1216.6,1216.5,50.0]
[1610195781549,4.00959,1216.6,1216.5,51.7144]
[1610195781951,4.00959,1216.6,1216.5,1.7144]
[1610195782350,4.00959,1216.6,1216.5,52.9701017]
[1610195782552,55.84009,1216.6,1216.5,52.9701017]
[1610195782851,4.00959,1216.6,1216.5,52.9701017]
[1610195783454,4.00959,1216.6,1216.5,2.9701017]
[1610195784657,4.00959,1216.6,1216.5,52.9701017]
[1610195785660,4.00959,1216.6,1216.5,2.9701017]
[1610195786561,4.00959,1216.6,1216.5,52.9701017]
[1610195786762,34.00959,1216.6,1216.5,52.9701017]
[1610195787264,34.00959,1216.6,1216.5,2.9701017]
[1610195788266,4.00959,1216.6,1216.5,2.9701017]
[1610195788866,4.00959,1216.6,1216.5,1.2557017]
[1610195789365,4.00959,1216.6,1216.5,51.2557017]
[1610195789565,34.00959,1216.6,1216.5,51.2557017]
[1610195789766,34.00959,1216.6,1216.5,1.2557017]
[1610195790667,4.00959,1216.6,1216.5,1.2557017]
[1610195790867,34.00959,1216.6,1216.5,1.2557017]
[1610195791968,4.00959,1216.6,1216.5,1.2557017]
[1610195792869,4.00959,1216.6,1216.4,1.25605508]
[1610195793174,30.0,1216.9,1216.4,1.25605508]
[1610195793374,30.0,1216.9,1216.4,51.25605508]
[1610195793774,4.00959,1216.5,1216.4,1.25605508]
[1610195794174,4.00959,1216.5,1216.2,52.2102]
[1610195795574,4.00959,1216.5,1216.3,1.25608782]
[1610195795775,136.91440212,1217.0,1216.3,1.25608782]
[1610195796675,136.91440212,1217.0,1216.3,51.25608782]
[1610195797476,136.91440212,1217.0,1216.3,1.25608782]
[1610195797674,106.91440212,1217.0,1216.4,50.0]
[1610195798278,106.91440212,1217.0,1216.5,50.0]
[1610195798476,40.82240212,1217.0,1216.5,50.0]
[1610195798877,40.81972978,1217.1,1216.4,50.0]
[1610195799277,40.81972978,1217.1,1216.6,50.0]
[1610195799677,40.81972978,1217.1,1216.7,50.0]
[1610195799877,40.83702047,1217.3,1216.7,50.0]
[1610195800078,40.83702047,1217.3,1216.5,3.1704092]
[1610195800277,12.62985615,1217.4,1216.8,50.0]
[1610195800278,40.84969676,1217.4,1216.8,50.0]
[1610195800676,40.84969676,1217.4,1216.8,1.7428]
[1610195800879,40.86996835,1217.5,1216.9,50.0]
[1610195801077,40.86996835,1217.5,1216.9,51.25561345]
[1610195801277,18.7519461,1217.6,1216.9,51.25561345]
[1610195801278,46.99014501,1217.6,1216.9,51.25561345]
[1610195801677,4.00959,1217.0,1216.9,51.25561345]
[1610195801877,4.00959,1217.0,1216.9,1.25561345]
[1610195802279,4.00959,1217.0,1216.8,1.7428]
[1610195802678,4.00959,1217.0,1216.9,50.0]
[1610195803678,4.00959,1217.0,1216.9,1.25582673]
[1610195804081,13.71389,1217.0,1216.9,1.25582673]
[1610195804982,13.71389,1217.0,1216.5,1.9145]
[1610195805384,13.71389,1217.0,1216.4,50.0]
[1610195805685,4.00959,1216.5,1216.4,50.0]
[1610195806485,4.00959,1216.5,1216.4,51.25609602]
[1610195807084,4.00959,1216.5,1216.4,1.25609602]
[1610195807287,4.00959,1216.5,1216.2,2.2102]
[1610195807687,4.00959,1216.3,1216.2,2.2102]
[1610195807887,4.00959,1216.3,1215.7,47.8852]
[1610195808086,4.00959,1216.3,1216.2,50.0]
[1610195808487,4.00959,1216.3,1216.1,1.8477]
[1610195808988,4.00959,1216.3,1216.2,50.0]
[1610195809188,4.00959,1216.3,1216.2,51.25625263]
[1610195812894,4.00959,1216.3,1216.2,50.0]
[1610195813696,63.98939,1216.3,1216.2,51.25628093]
[1610195819103,63.98939,1216.3,1216.2,1.25628093]
[1610195819302,63.98939,1216.3,1216.1,51.8477]
[1610195820706,63.98939,1216.3,1216.2,1.25645293]
[1610195821606,63.98939,1216.3,1216.2,51.25645293]
[1610195824008,4.00959,1216.3,1216.2,51.25645293]
[1610195837924,4.00959,1216.3,1216.2,55.26604293]
[1610195845339,40.85151835,1217.4,1216.2,55.26604293]
[1610195845538,40.85151835,1217.4,1216.2,106.55364293]
[1610195845740,40.85151835,1217.4,1216.3,50.0]
[1610195845939,40.85151835,1217.4,1216.4,4.00959]
[1610195846138,40.85151835,1217.4,1216.4,5.64149]
[1610195847139,40.85151835,1217.4,1216.4,55.64149]
[1610195847339,40.85151835,1217.4,1216.7,57.5387]
[1610195847538,40.85151835,1217.4,1216.7,59.4321]
[1610195847739,20.66057276,1217.6,1216.7,59.4321]
[1610195847740,40.83028264,1217.6,1216.7,59.4321]
[1610195847940,40.83028264,1217.6,1216.8,54.00959]
[1610195847941,4.00959,1216.9,1216.8,54.00959]
[1610195848140,40.83028264,1217.6,1216.8,54.00959]
[1610195848341,40.8483331,1217.7,1216.9,50.0]
[1610195848741,40.8483331,1217.7,1216.8,54.00959]
[1610195849241,40.8483331,1217.7,1217.0,51.25545531]
[1610195849441,40.8483331,1217.7,1217.0,53.39825531]
[1610195849642,40.8483331,1217.7,1217.1,50.0]
[1610195850042,4.00959,1217.2,1217.1,50.0]
[1610195850244,4.00959,1217.2,1217.0,3.39825531]
[1610195850645,4.00959,1217.2,1217.1,50.0]
[1610195852045,4.00959,1217.2,1217.1,51.25522707]
[1610195855745,4.00959,1217.2,1217.1,1.25522707]
[1610195856147,4.00959,1217.2,1217.0,52.1428]
[1610195857246,4.00959,1217.2,1217.1,50.0]
[1610195861451,4.00959,1217.2,1217.0,52.1428]
[1610195861850,34.00959,1217.2,1217.0,52.1428]
[1610195862051,74.96318754,1217.2,1217.1,50.0]
[1610195862451,74.96318754,1217.2,1216.7,50.0]
[1610195862452,34.00959,1217.2,1216.7,50.0]
[1610195862853,49.3675,1216.7,1216.4,1.6319]
[1610195863054,79.3675,1216.7,1216.2,50.0]
[1610195863957,49.3675,1216.7,1216.3,50.0]
[1610195864155,4.00959,1216.4,1216.3,50.0]
[1610195864355,4.00959,1216.4,1216.2,50.0]
[1610195864756,34.00959,1216.4,1216.2,50.0]
[1610195864956,41.16339,1216.4,1216.2,50.0]
[1610195865757,41.16339,1216.4,1216.3,50.0]
[1610195866559,34.00959,1216.4,1216.3,50.0]
[1610195866760,34.00959,1216.4,1216.2,50.0]
[1610195866959,49.2793,1216.3,1216.2,50.0]
[1610195867160,79.2793,1216.3,1216.1,1.8477]
[1610195867362,49.2793,1216.3,1215.4,48.0905]
[1610195867560,49.2793,1216.3,1216.2,50.0]
[1610195868260,49.2793,1216.3,1216.2,2.4071]
[1610195868560,49.2793,1216.3,1216.2,52.4071]
[1610195869362,4.00959,1216.4,1216.2,52.4071]
[1610195869763,4.00959,1216.4,1216.3,50.0]
[1610195869967,34.00959,1216.4,1216.3,50.0]
[1610195870369,55.0881,1216.3,1216.2,52.4071]
[1610195870569,55.0881,1216.3,1216.2,50.0]
[1610195870570,85.0881,1216.3,1216.2,50.0]
[1610195870768,85.0881,1216.3,1216.1,50.0]
[1610195871569,85.0881,1216.3,1215.9,50.0]
[1610195871872,85.0881,1216.3,1216.1,50.0]
[1610195872069,4.00959,1216.2,1216.1,50.0]
[1610195872269,34.00959,1216.2,1216.1,50.0]
[1610195872670,54.8817,1216.1,1215.9,50.0]
[1610195872871,30.0,1216.0,1215.9,50.0]
[1610195873373,30.0,1216.0,1215.8,2.087]
[1610195873574,30.0,1216.0,1215.6,50.0]
[1610195873773,30.0,1216.0,1215.5,50.0]
[1610195873971,4.00959,1216.2,1215.5,50.0]
[1610195873972,59.1586,1215.6,1215.5,50.0]
[1610195874171,93.16819,1215.6,1215.5,50.0]
[1610195874373,93.16819,1215.6,1215.4,50.0]
[1610195874773,93.16819,1215.6,1215.3,50.0]
[1610195875171,94.81269,1215.6,1214.6,50.0]
[1610195875371,93.16819,1215.6,1215.2,50.0]
[1610195876174,4.00959,1215.3,1215.2,50.0]
[1610195876975,4.00959,1215.3,1214.9,1.71]
[1610195877675,4.00959,1215.3,1215.2,50.0]
[1610195877876,4.00959,1215.3,1215.0,50.0]
[1610195878076,4.00959,1215.1,1215.0,50.0]
[1610195878276,4.00959,1215.1,1214.9,1.71]
[1610195878877,40.68252131,1215.8,1215.0,50.0]
[1610195879078,40.71868403,1216.0,1215.0,50.0]
[1610195879480,47.04839018,1216.1,1215.1,50.0]
[1610195879679,36.3301,1216.1,1215.1,50.0]
[1610195879879,36.3301,1216.1,1215.2,50.0]
[1610195880077,36.3301,1216.1,1215.2,52.5071]
[1610195880278,4.00959,1215.3,1215.2,53.76408354]
[1610195881079,4.00959,1215.3,1215.2,3.76408354]
[1610195881678,4.00959,1215.3,1215.2,52.5071]
[1610195883179,4.00959,1215.3,1215.2,53.76418016]
[1610195887987,40.73906257,1216.1,1215.2,53.76418016]